fUSD/lending_fUSD_20250820
["ID","MTS","AMOUNT","RATE_DAILY","PERIOD"]
[380390446,1755723051469,-1031.12,0.00030136,120]
[380390447,1755723051478,-1289.55,0.00030136,120]
[380390448,1755723051488,-1622.89,0.00030136,120]
[380390449,1755723051498,-1239.84,0.00030136,120]
[380390450,1755723051507,-1173.57,0.00030136,120]
[380390451,1755723051516,-1288.69,0.00030136,120]
[380390452,1755723051526,-432.57,0.00030136,120]
[380390453,1755723051535,-992.72,0.00030136,120]
[380390454,1755723051543,-662.58,0.00030136,120]
[380390455,1755723051553,-400.0,0.00030136,120]
[380390456,1755723051562,-1079.09,0.00030136,120]
[380390457,1755723051571,-915.38,0.00030136,120]
[380390458,1755723051580,-409.55,0.00030136,120]
[380390459,1755723051591,-1169.14,0.00030136,120]
[380390460,1755723051601,-1053.18,0.00030136,120]
[380390461,1755723051610,-499.24,0.00030136,120]
[380390462,1755723051619,-1072.29,0.00030136,120]
[380390463,1755723051628,-400.0,0.00030136,120]
[380390464,1755723051638,-1003.97,0.00030136,120]
[380390465,1755723051648,-400.0,0.00030136,120]
[380390466,1755723051658,-567.61,0.00030136,120]
[380390467,1755723051667,-1468.72,0.00030136,120]
[380390468,1755723051677,-712.7,0.00030136,120]
[380390469,1755723051686,-851.68,0.00030136,120]
[380390470,1755723051695,-400.0,0.00030136,120]
[380390471,1755723051704,-811.27,0.00030136,120]
[380390472,1755723051713,-400.0,0.00030136,120]
[380390473,1755723051722,-884.22,0.00030136,120]
[380390474,1755723051731,-400.0,0.00030136,120]
[380390475,1755723051740,-400.0,0.00030136,120]
[380390476,1755723051749,-1064.32,0.00030136,120]
[380390477,1755723051759,-400.0,0.00030136,120]
[380390478,1755723051768,-2226.39,0.00030136,120]
[380390479,1755723051777,-582.16,0.00030136,120]
[380390480,1755723051787,-400.0,0.00030136,120]
[380390481,1755723051796,-861.03,0.00030136,120]
[380390482,1755723051806,-1134.85,0.00030136,120]
[380390483,1755723051815,-1108.91,0.00030136,120]
[380390484,1755723051824,-1530.6,0.00030136,120]
[380390485,1755723051834,-402.33864406,0.00030136,120]
[380390486,1755723051843,-1157.69,0.00030136,120]
[380390487,1755723051852,-588.31,0.00030136,120]
[380390488,1755723051861,-767.51,0.00030136,120]
[380390489,1755723051870,-1412.95,0.00030136,120]
[380390490,1755723051879,-1102.05,0.00030136,120]
[380390491,1755723051889,-644.41,0.00030136,120]
[380390492,1755723051898,-400.0,0.00030136,120]
[380390493,1755723051906,-400.0,0.00030136,120]
[380390494,1755723051915,-648.8,0.00030136,120]
[380390495,1755723051924,-1508.53,0.00030136,120]
[380390496,1755723051933,-1447.55,0.00030136,120]
[380390497,1755723051942,-523.59,0.00030136,120]
[380390498,1755723051951,-996.96,0.00030136,120]
[380390499,1755723051960,-3331.22,0.00030136,120]
[380390500,1755723051969,-400.0,0.00030136,120]
[380390501,1755723051978,-960.99,0.00030136,120]
[380390502,1755723051988,-400.4,0.00030136,120]
[380390503,1755723051997,-400.0,0.00030136,120]
[380390504,1755723052006,-400.0,0.00030136,120]
[380390505,1755723052015,-1232.2,0.00030136,120]
[380390506,1755723052024,-400.0,0.00030136,120]
[380390507,1755723052033,-919.57,0.00030136,120]
[380390508,1755723052042,-400.0,0.00030136,120]
[380390509,1755723052051,-462.89,0.00030136,120]
[380390510,1755723052060,-521.75,0.00030136,120]
[380390511,1755723052070,-653.34,0.00030136,120]
[380390512,1755723052078,-650.56,0.00030136,120]
[380390513,1755723052088,-1041.58,0.00030136,120]
[380390514,1755723052097,-400.0,0.00030136,120]
[380390515,1755723052106,-400.0,0.00030136,120]
[380390516,1755723052115,-881.59,0.00030136,120]
[380390517,1755723052124,-400.0,0.00030136,120]
[380390518,1755723052133,-400.0,0.00030136,120]
[380390519,1755723052142,-2207.0,0.00030136,120]
[380390520,1755723052152,-839.22,0.00030136,120]
[380390521,1755723052161,-631.4,0.00030136,120]
[380390522,1755723052170,-400.0,0.00030136,120]
[380390523,1755723052180,-1059.75,0.00030136,120]
[380390524,1755723052189,-1090.91,0.00030136,120]
[380390525,1755723052198,-400.0,0.00030136,120]
[380390526,1755723052207,-2600.16,0.00030136,120]
[380390527,1755723052216,-400.0,0.00030136,120]
[380390528,1755723052225,-863.53,0.00030136,120]
[380390529,1755723052235,-563.54,0.00030136,120]
[380390530,1755723052244,-1081.42,0.00030136,120]
[380390531,1755723052253,-750.31,0.00030136,120]
[380390532,1755723052263,-957.07,0.00030136,120]
[380390533,1755723052272,-2589.91,0.00030136,120]
[380390534,1755723052288,-431.72,0.00030136,120]
[380390535,1755723052297,-1539.53,0.00030136,120]
[380390536,1755723052307,-424.65,0.00030136,120]
[380390537,1755723052316,-797.01,0.00030136,120]
[380390538,1755723052325,-471.70634365,0.00030136,120]
[380390539,1755723052334,-1114.71,0.00030136,120]
[380390540,1755723052343,-921.5,0.00030136,120]
[380390541,1755723052352,-783.79,0.00030136,120]
[380390542,1755723052361,-479.93,0.00030136,120]
[380390543,1755723052370,-577.44,0.00030136,120]
[380390544,1755723052379,-1017.91,0.00030136,120]
[380390545,1755723052388,-400.0,0.00030136,120]
[380390546,1755723052397,-1095.7,0.00030136,120]
[380390547,1755723052407,-707.11,0.00030136,120]
[380390548,1755723052416,-1615.25,0.00030136,120]
[380390549,1755723052429,-400.0,0.00030136,120]
[380390550,1755723052438,-400.0,0.00030136,120]
[380390551,1755723052448,-628.02,0.00030136,120]
[380390552,1755723052457,-400.0,0.00030136,120]
[380390553,1755723052468,-2469.45,0.00030136,120]
[380390554,1755723052477,-896.09,0.00030136,120]
[380390555,1755723052486,-840.89,0.00030136,120]
[380390556,1755723052496,-1677.33,0.00030136,120]
[380390557,1755723052506,-999.49,0.00030136,120]
[380390558,1755723052515,-400.0,0.00030136,120]
[380390559,1755723052524,-400.0,0.00030136,120]
[380390560,1755723052533,-964.5,0.00030136,120]
[380390561,1755723052544,-654.76,0.00030136,120]
[380390562,1755723052553,-1235.54,0.00030136,120]
[380390563,1755723052564,-896.35,0.00030136,120]
[380390564,1755723052574,-1423.61,0.00030136,120]
[380390565,1755723052583,-400.0,0.00030136,120]
[380390566,1755723052592,-849.8,0.00030136,120]
[380390567,1755723052601,-3541.62,0.00030136,120]
[380390568,1755723052610,-1138.18,0.00030136,120]
[380390569,1755723052620,-726.02,0.00030136,120]
[380390570,1755723052629,-400.0,0.00030136,120]
[380390571,1755723052638,-400.0,0.00030136,120]
[380390572,1755723052647,-1097.84,0.00030136,120]
[380390573,1755723052656,-505.2,0.00030136,120]
[380390574,1755723052665,-1299.21,0.00030136,120]
[380390575,1755723052674,-503.73,0.00030136,120]
[380390576,1755723052687,-672.93,0.00030136,120]
[380390577,1755723052697,-647.78,0.00030136,120]
[380390578,1755723052706,-1729.56,0.00030136,30]
[380390579,1755723052716,-1729.56,0.00030136,30]
[380390580,1755723052725,-1729.56,0.00030136,30]
[380390581,1755723052737,-1729.56,0.00030136,30]
[380390582,1755723052752,-967.38,0.00030136,120]
[380390583,1755723052762,-1729.56,0.00030136,30]
[380390584,1755723052772,-400.0,0.00030136,120]
[380390585,1755723052789,-1729.56,0.00030136,30]
[380390586,1755723052802,-1729.56,0.00030136,30]
[380390587,1755723052811,-1729.56,0.00030136,30]
[380390588,1755723052820,-1729.56,0.00030136,30]
[380390589,1755723052830,-1729.56,0.00030136,30]
[380390590,1755723052840,-1729.56,0.00030136,30]
[380390591,1755723052849,-1729.56,0.00030136,30]
[380390592,1755723052858,-1729.56,0.00030136,30]
[380390593,1755723052867,-1180.51,0.00030136,120]
[380390594,1755723052877,-1413.95,0.00030136,120]
[380390595,1755723052886,-675.5,0.00030136,120]
[380390596,1755723052895,-1729.56,0.00030136,30]
[380390597,1755723052905,-1729.56,0.00030136,30]
[380390598,1755723052914,-817.33,0.00030136,120]
[380390599,1755723052923,-1729.56,0.00030136,30]
[380390600,1755723052932,-428.35,0.00030136,10]
[380390601,1755723052941,-400.0,0.00030136,120]
[380390602,1755723052951,-678.58,0.00030136,120]
[380390603,1755723052960,-1729.56,0.00030136,30]
[380390604,1755723052969,-1729.56,0.00030136,30]
[380390605,1755723052978,-400.0,0.00030136,120]
[380390606,1755723052987,-1729.56,0.00030136,30]
[380390607,1755723052997,-1729.56,0.00030136,30]
[380390608,1755723053006,-1729.56,0.00030136,30]
[380390609,1755723053016,-980.46,0.00030136,120]
[380390610,1755723053024,-775.19,0.00030136,120]
[380390611,1755723053034,-1729.56,0.00030136,30]
[380390612,1755723053043,-1067.56,0.00030136,120]
[380390613,1755723053052,-1729.56,0.00030136,30]
[380390614,1755723053062,-1729.71911855,0.00030136,30]
[380390615,1755723053071,-400.0,0.00030136,120]
[380390616,1755723053080,-524.6,0.00030136,120]
[380390617,1755723053089,-400.0,0.00030136,120]
[380390618,1755723053099,-400.0,0.00030136,120]
[380390619,1755723053108,-680.81,0.00030136,120]
[380390620,1755723053117,-1476.84,0.00030136,120]
[380390621,1755723053127,-400.0,0.00030136,120]
[380390622,1755723053136,-400.0,0.00030136,120]
[380390623,1755723053145,-400.0,0.00030136,120]
[380390624,1755723053155,-942.78,0.00030136,120]
[380390625,1755723053164,-2092.06,0.00030136,120]
[380390626,1755723053173,-400.0,0.00030136,12]
[380390627,1755723053183,-983.79,0.00030136,120]
[380390628,1755723053192,-994.95,0.00030136,120]
[380390629,1755723053201,-1463.03,0.00030136,120]
[380390630,1755723053211,-1708.41,0.00030136,120]
[380390631,1755723053220,-400.0,0.00030136,120]
[380390632,1755723053229,-1096.82,0.00030136,120]
[380390633,1755723053245,-400.0,0.00030136,120]
[380390634,1755723053258,-635.01,0.00030136,120]
[380390635,1755723053267,-809.56,0.00030136,120]
[380390636,1755723053276,-706.2,0.00030136,120]
[380390637,1755723053292,-630.54,0.00030136,120]
[380390638,1755723053301,-1306.09,0.00030136,120]
[380390639,1755723053310,-400.0,0.00030136,120]
[380390640,1755723053320,-400.0,0.00030136,120]
[380390641,1755723053329,-858.34,0.00030136,120]
[380390642,1755723053338,-1323.26,0.00030136,120]
[380390643,1755723053348,-585.78,0.00030136,120]
[380390644,1755723053357,-400.0,0.00030136,120]
[380390645,1755723053367,-1199.95,0.00030136,120]
[380390646,1755723053376,-1099.41,0.00030136,120]
[380390647,1755723053385,-904.89,0.00030136,120]
[380390648,1755723053395,-827.45,0.00030136,120]
[380390649,1755723053404,-400.0,0.00030136,120]
[380390650,1755723053414,-400.0,0.00030136,120]
[380390651,1755723053427,-503.88,0.00030136,120]
[380390652,1755723053436,-17811.76,0.00030136,14]
[380390653,1755723053445,-865.27,0.00030136,120]
[380390654,1755723053454,-400.0,0.00030136,120]
[380390655,1755723053465,-414.35,0.00030136,120]
[380390656,1755723053475,-400.0,0.00030136,120]
[380390657,1755723053484,-400.0,0.00030136,120]
[380390658,1755723053494,-664.12,0.00030136,120]
[380390659,1755723053504,-649.45,0.00030136,120]
[380390660,1755723053513,-400.0,0.00030136,120]
[380390661,1755723053523,-400.0,0.00030136,120]
[380390662,1755723053532,-1075.41,0.00030136,120]
[380390663,1755723053542,-400.62490579,0.00030136,30]
[380390664,1755723053551,-761.64,0.00030136,120]
[380390665,1755723053561,-1068.23,0.00030136,120]
[380390666,1755723053571,-400.0,0.00030136,120]
[380390667,1755723053581,-1724.72,0.00030136,120]
[380390668,1755723053591,-787.48,0.00030136,120]
[380390669,1755723053601,-400.0,0.00030136,120]
[380390670,1755723053610,-1272.27,0.00030136,120]
[380390671,1755723053620,-871.84,0.00030136,120]
[380390672,1755723053630,-986.82,0.00030136,120]
[380390673,1755723053639,-400.0,0.00030136,120]
[380390674,1755723053649,-924.04,0.00030136,120]
[380390675,1755723053660,-520.03,0.00030136,120]
[380390676,1755723053670,-589.95,0.00030136,120]
[380390677,1755723053680,-1288.34,0.00030136,120]
[380390678,1755723053690,-514.4,0.00030136,120]
[380390679,1755723053700,-581.74,0.00030136,120]
[380390680,1755723053709,-1475.58,0.00030136,120]
[380390681,1755723053719,-400.0,0.00030136,120]
[380390682,1755723053730,-400.0,0.00030136,120]
[380390683,1755723053741,-400.0,0.00030136,120]
[380390684,1755723053751,-438.27,0.00030136,120]
[380390685,1755723053761,-708.52,0.00030136,120]
[380390686,1755723053771,-452.15,0.00030136,120]
[380390687,1755723053780,-736.63,0.00030136,120]
[380390688,1755723053790,-889.66,0.00030136,120]
[380390689,1755723053800,-400.0,0.00030136,120]
[380390690,1755723053809,-400.0,0.00030136,120]
[380390691,1755723053818,-431.54,0.00030136,120]
[380390692,1755723053828,-465.42,0.00030136,120]
[380390693,1755723053837,-400.0,0.00030136,120]
[380390694,1755723053847,-668.66,0.00030136,120]
[380390695,1755723053856,-614.99,0.00030136,120]
[380390696,1755723053866,-746.31,0.00030136,120]
[380390697,1755723053875,-400.0,0.00030136,120]
[380390698,1755723053885,-400.0,0.00030136,120]
[380390699,1755723053895,-1312.23,0.00030136,120]
[380390700,1755723053904,-1367.02,0.00030136,120]
[380390701,1755723053914,-1318.58,0.00030136,120]
[380390702,1755723053924,-926.84,0.00030136,120]
[380390703,1755723053933,-400.0,0.00030136,120]
[380390704,1755723053943,-1083.99,0.00030136,120]
[380390705,1755723053954,-760.19,0.00030136,120]
[380390706,1755723053964,-1226.48,0.00030136,120]
[380390707,1755723053973,-1697.0,0.00030136,120]
[380390708,1755723053984,-400.0,0.00030136,120]
[380390709,1755723053994,-1141.5,0.00030136,120]
[380390710,1755723054004,-560.28,0.00030136,120]
[380390711,1755723054014,-1137.96,0.00030136,120]
[380390712,1755723054023,-1027.64,0.00030136,120]
[380390713,1755723054033,-400.0,0.00030136,120]
[380390714,1755723054043,-712.75,0.00030136,120]
[380390715,1755723054053,-655.0,0.00030136,120]
[380390716,1755723054063,-403.20912992,0.00030136,120]
[380390717,1755723054072,-1167.07,0.00030136,120]
[380390718,1755723054082,-681.03,0.00030136,120]
[380390719,1755723054092,-400.0,0.00030136,120]
[380390720,1755723054101,-3468.69,0.00030136,120]
[380390721,1755723054111,-400.0,0.00030136,120]
[380390722,1755723054123,-400.0,0.00030136,120]
[380390723,1755723054142,-1358.04,0.00030136,120]
[380390724,1755723054152,-447.8,0.00030136,120]
[380390725,1755723054161,-400.0,0.00030136,120]
[380390726,1755723054171,-400.0,0.00030136,120]
[380390727,1755723054188,-400.0,0.00030136,120]
[380390728,1755723054197,-400.0,0.00030136,120]
[380390729,1755723054207,-400.0,0.00030136,120]
[380390730,1755723054216,-650.32,0.00030136,120]
[380390731,1755723054225,-978.55,0.00030136,120]
[380390732,1755723054235,-400.0,0.00030136,120]
[380390733,1755723054244,-857.94,0.00030136,120]
[380390734,1755723054254,-415.06,0.00030136,120]
[380390735,1755723054263,-664.04,0.00030136,120]
[380390736,1755723054291,-1472.5,0.00030136,120]
[380390737,1755723054301,-958.02,0.00030136,120]
[380390738,1755723054310,-1071.69,0.00030136,120]
[380390739,1755723054319,-2628.62,0.00030136,120]
[380390740,1755723054329,-2039.67,0.00030136,120]
[380390741,1755723054338,-627.53,0.00030136,120]
[380390742,1755723054348,-400.0,0.00030136,120]
[380390743,1755723054357,-587.73,0.00030136,120]
[380390744,1755723054367,-400.0,0.00030136,120]
[380390745,1755723054377,-662.91,0.00030136,120]
[380390746,1755723054387,-606.07,0.00030136,120]
[380390747,1755723054396,-400.0,0.00030136,120]
[380390748,1755723054406,-400.0,0.00030136,120]
[380390749,1755723054415,-1759.55,0.00030136,120]
[380390750,1755723054426,-1051.69,0.00030136,120]
[380390751,1755723054436,-2025.56,0.00030136,120]
[380390752,1755723054444,-400.0,0.00030136,120]
[380390753,1755723054453,-903.81,0.00030136,120]
[380390754,1755723054463,-1047.68,0.00030136,120]
[380390755,1755723054473,-400.0,0.00030136,120]
[380390756,1755723054482,-755.71,0.00030136,120]
[380390757,1755723054491,-481.34,0.00030136,120]
[380390758,1755723054499,-749.86,0.00030136,120]
[380390759,1755723054511,-508.78,0.00030136,120]
[380390760,1755723054520,-599.37,0.00030136,120]
[380390761,1755723054529,-2903.09,0.00030136,120]
[380390762,1755723054538,-422.68,0.00030136,120]
[380390763,1755723054548,-1207.2,0.00030136,120]
[380390764,1755723054558,-400.0,0.00030136,120]
[380390765,1755723054568,-400.0,0.00030136,120]
[380390766,1755723054578,-400.0,0.00030136,120]
[380390767,1755723054588,-449.24,0.00030136,120]
[380390768,1755723054598,-4068.06,0.00030136,120]
[380390769,1755723054608,-1175.24,0.00030136,120]
[380390770,1755723054618,-1099.48,0.00030136,120]
[380390771,1755723054627,-4447.8,0.00030136,120]
[380390772,1755723054636,-400.0,0.00030136,120]
[380390773,1755723054645,-400.0,0.00030136,120]
[380390774,1755723054654,-494.94,0.00030136,120]
[380390775,1755723054664,-400.0,0.00030136,120]
[380390776,1755723054673,-400.0,0.00030136,120]
[380390777,1755723054683,-635.58,0.00030136,120]
[380390778,1755723054692,-400.0,0.00030136,120]
[380390779,1755723054702,-675.16,0.00030136,120]
[380390780,1755723054711,-400.0,0.00030136,120]
[380390781,1755723054721,-951.7,0.00030136,120]
[380390782,1755723054730,-400.0,0.00030136,120]
[380390783,1755723054740,-1756.99,0.00030136,120]
[380390784,1755723054749,-758.77,0.00030136,120]
[380390785,1755723054758,-1041.44,0.00030136,120]
[380390786,1755723054768,-2032.54,0.00030136,120]
[380390787,1755723054777,-400.0,0.00030136,120]
[380390788,1755723054786,-737.59,0.00030136,120]
[380390789,1755723054797,-578.62,0.00030136,120]
[380390790,1755723054807,-1738.3,0.00030136,120]
[380390791,1755723054816,-576.0,0.00030136,120]
[380390792,1755723054826,-400.0,0.00030136,120]
[380390793,1755723054835,-1027.6,0.00030136,120]
[380390794,1755723054844,-400.0,0.00030136,120]
[380390795,1755723054854,-400.0,0.00030136,120]
[380390796,1755723054862,-15292.08,0.00030136,120]
[380390797,1755723054872,-1103.3,0.00030136,120]
[380390798,1755723054883,-566.78,0.00030136,120]
[380390799,1755723054894,-1082.33,0.00030136,120]
[380390800,1755723054905,-400.0,0.00030136,120]
[380390801,1755723054915,-400.0,0.00030136,120]
[380390802,1755723054926,-400.0,0.00030136,120]
[380390803,1755723054936,-694.97,0.00030136,120]
[380390804,1755723054946,-1516.04,0.00030136,120]
[380390805,1755723054955,-1421.88,0.00030136,120]
[380390806,1755723054965,-400.0,0.00030136,120]
[380390807,1755723054974,-785.57,0.00030136,120]
[380390808,1755723054983,-400.0,0.00030136,120]
[380390809,1755723054993,-1037.2,0.00030136,120]
[380390810,1755723055003,-400.0,0.00030136,120]
[380390811,1755723055012,-1683.33,0.00030136,120]
[380390812,1755723055021,-533.06,0.00030136,120]
[380390813,1755723055030,-400.0,0.00030136,120]
[380390814,1755723055040,-867.06,0.00030136,120]
[380390815,1755723055049,-1817.2,0.00030136,120]
[380390816,1755723055058,-3607.22,0.00030136,120]
[380390817,1755723055067,-574.58,0.00030136,120]
[380390818,1755723055077,-479.05,0.00030136,120]
[380390819,1755723055086,-400.0,0.00030136,120]
[380390820,1755723055095,-1432.27,0.00030136,2]
[380390821,1755723055104,-400.0,0.00030136,120]
[380390822,1755723055114,-875.44,0.00030136,120]
[380390823,1755723055123,-1070.78,0.00030136,120]
[380390824,1755723055132,-400.0,0.00030136,120]
[380390825,1755723055142,-1781.02,0.00030136,120]
[380390826,1755723055151,-560.35,0.00030136,120]
[380390827,1755723055161,-400.0,0.00030136,120]
[380390828,1755723055171,-2005.44,0.00030136,120]
[380390829,1755723055185,-400.0,0.00030136,120]
[380390830,1755723055194,-1183.17,0.00030136,120]
[380390831,1755723055203,-671.19,0.00030136,120]
[380390832,1755723055212,-855.03,0.00030136,120]
[380390833,1755723055222,-608.71,0.00030136,120]
[380390834,1755723055231,-482.71,0.00030136,120]
[380390835,1755723055242,-1294.66,0.00030136,120]
[380390836,1755723055251,-574.84,0.00030136,120]
[380390837,1755723055261,-400.0,0.00030136,120]
[380390838,1755723055270,-1275.25,0.00030136,120]
[380390839,1755723055280,-654.22,0.00030136,120]
[380390840,1755723055290,-932.37,0.00030136,120]
[380390841,1755723055299,-568.28,0.00030136,120]
[380390842,1755723055310,-867.97,0.00030136,120]
[380390843,1755723055320,-1519.63,0.00030136,120]
[380390844,1755723055330,-400.0,0.00030136,120]
[380390845,1755723055341,-450.57,0.00030136,120]
[380390846,1755723055351,-400.0,0.00030136,120]
[380390847,1755723055361,-400.0,0.00030136,120]
[380390848,1755723055371,-519.1,0.00030136,120]
[380390849,1755723055381,-400.0,0.00030136,120]
[380390850,1755723055390,-791.74,0.00030136,120]
[380390851,1755723055400,-400.0,0.00030136,120]
[380390852,1755723055410,-400.0,0.00030136,120]
[380390853,1755723055422,-1553.55,0.00030136,120]
[380390854,1755723055441,-1356.65,0.00030136,120]
[380390855,1755723055462,-400.0,0.00030136,120]
[380390856,1755723055473,-5801.53,0.00030136,120]
[380390857,1755723055484,-899.99,0.00030136,120]
[380390858,1755723055494,-400.0,0.00030136,120]
[380390859,1755723055504,-2791.16,0.00030136,120]
[380390860,1755723055519,-667.89,0.00030136,120]
[380390861,1755723055530,-400.0,0.00030136,120]
[380390862,1755723055541,-1012.44,0.00030136,120]
[380390863,1755723055550,-441.2,0.00030136,120]
[380390864,1755723055561,-400.0,0.00030136,120]
[380390865,1755723055571,-506.1,0.00030136,120]
[380390866,1755723055581,-541.22,0.00030136,120]
[380390867,1755723055590,-562.4,0.00030136,120]
[380390868,1755723055600,-922.48,0.00030136,120]
[380390869,1755723055609,-2409.39,0.00030136,120]
[380390870,1755723055618,-400.0,0.00030136,120]
[380390871,1755723055628,-1006.91,0.00030136,120]
[380390872,1755723055637,-730.26,0.00030136,120]
[380390873,1755723055647,-620.29,0.00030136,120]
[380390874,1755723055657,-548.69,0.00030136,120]
[380390875,1755723055666,-1040.68,0.00030136,120]
[380390876,1755723055676,-533.25,0.00030136,120]
[380390877,1755723055685,-1265.22,0.00030136,120]
[380390878,1755723055695,-400.0,0.00030136,120]
[380390879,1755723055705,-874.97,0.00030136,120]
[380390880,1755723055714,-621.8,0.00030136,120]
[380390881,1755723055724,-539.67,0.00030136,120]
[380390882,1755723055734,-2159.84,0.00030136,120]
[380390883,1755723055743,-632.14,0.00030136,120]
[380390884,1755723055752,-2183.85,0.00030136,120]
[380390885,1755723055762,-1942.68,0.00030136,120]
[380390886,1755723055771,-579.09,0.00030136,120]
[380390887,1755723055780,-400.0,0.00030136,120]
[380390888,1755723055790,-626.5,0.00030136,120]
[380390889,1755723055799,-400.0,0.00030136,120]
[380390890,1755723055809,-1511.8,0.00030136,120]
[380390891,1755723055818,-400.0,0.00030136,120]
[380390892,1755723055827,-1400.59,0.00030136,120]
[380390893,1755723055837,-400.0,0.00030136,120]
[380390894,1755723055846,-432.2,0.00030136,120]
[380390895,1755723055855,-701.83,0.00030136,120]
[380390896,1755723055865,-568.82,0.00030136,120]
[380390897,1755723055875,-450.44,0.00030136,120]
[380390898,1755723055885,-1696.6,0.00030136,120]
[380390899,1755723055894,-1667.39,0.00030136,120]
[380390900,1755723055903,-3784.19,0.00030136,120]
[380390901,1755723055913,-400.0,0.00030136,120]
[380390902,1755723055923,-620.37,0.00030136,120]
[380390903,1755723055932,-400.0,0.00030136,120]
[380390904,1755723055942,-400.0,0.00030136,120]
[380390905,1755723055951,-400.0,0.00030136,120]
[380390906,1755723055960,-400.0,0.00030136,120]
[380390907,1755723055970,-1154.73,0.00030136,120]
[380390908,1755723055979,-403.66,0.00030136,120]
[380390909,1755723055990,-1032.41,0.00030136,120]
[380390910,1755723056000,-400.0,0.00030136,120]
[380390911,1755723056009,-1330.43,0.00030136,120]
[380390912,1755723056018,-400.0,0.00030136,120]
[380390913,1755723056027,-472.4,0.00030136,120]
[380390914,1755723056036,-740.35,0.00030136,120]
[380390915,1755723056045,-1371.25,0.00030136,120]
[380390916,1755723056054,-1057.09,0.00030136,120]
[380390917,1755723056063,-2947.24,0.00030136,120]
[380390918,1755723056072,-602.56,0.00030136,120]
[380390919,1755723056082,-1141.5,0.00030136,120]
[380390920,1755723056093,-609.87,0.00030136,120]
[380390921,1755723056104,-1312.38,0.00030136,120]
[380390922,1755723056117,-400.0,0.00030136,120]
[380390923,1755723056129,-400.0,0.00030136,120]
[380390924,1755723056140,-225.72111038,0.00030136,120]
[380390925,1755723056151,-1608.93,0.00030136,120]
[380390926,1755723056161,-559.13,0.00030136,120]
[380390927,1755723056171,-678.14,0.00030136,120]
[380390928,1755723056183,-411.87,0.00030136,7]
[380390929,1755723056194,-239.40296972,0.00030136,120]
[380390930,1755723056206,-400.0,0.00030136,120]
[380390931,1755723056218,-524.26,0.00030136,120]
[380390932,1755723056230,-400.0,0.00030136,7]
[380390933,1755723056243,-400.0,0.00030136,2]
[380390934,1755723056255,-657.29,0.00030136,120]
[380390935,1755723056267,-400.0,0.00030136,120]
[380390936,1755723056278,-845.29,0.00030136,120]
[380390937,1755723056289,-450.36,0.00030136,120]
[380390938,1755723056300,-599.06,0.00030136,120]
[380390939,1755723056311,-734.94,0.00030136,120]
[380390940,1755723056320,-816.45,0.00030136,120]
[380390941,1755723056331,-793.85,0.00030136,120]
[380390942,1755723056342,-400.0,0.00030136,120]
[380390943,1755723056353,-400.0,0.00030136,120]
[380390944,1755723056365,-1278.17,0.00030136,120]
[380390945,1755723056379,-1194.33,0.00030136,120]